Cogmind - Beta 11 @@@ ROGUE MODE // 2022.09.23 @ 10:01:40 Player: wchar_t Result: Destroyed by G-47 Trooper with Particle Gun Performance ------------- Evolutions (2) 1000 Regions Visited (5) 1000 Robots Destroyed (16) 80 Value Destroyed (605) 605 Prototype IDs (23) 460 Alien Tech Used (0) 0 Bonus (372) 372 TOTAL SCORE: 3517 Bonus ------- Follower Combat Kills 72 Aligned with FarCom 300 Cogmind --------- Core Integrity 0/550 Matter 300/300 Energy 41/100 System Corruption 0% Temperature Warm (101) Movement Core (150) Ox2 Location -8/Materials Parts ------- > --- POWER (1) -------- (None) > --- PROPULSION (3) --- (None) > --- UTILITY (5) ------ Small Storage Unit > --- WEAPON (2) ------- Heavy Laser > --- INVENTORY (8) ---- Light Ion Engine Light Ion Engine 0b10 Alert Chip Mining Laser Peak State ------------ > --- POWER ------------ Ion Engine > --- PROPULSION ------- Aluminum Leg Aluminum Leg > --- UTILITY ---------- Small Storage Unit Improved Terrain Scanner > --- WEAPON ----------- Autogun Grenade Launcher > --- INVENTORY -------- Light Ion Engine Light Ion Engine Light Treads Light Treads 0b10 Alert Chip Assault Rifle Assault Rifle Mining Laser [Rating: 11] Favorites ----------- Power Ion Engine Engine Ion Engine Propulsion Aluminum Leg Treads Light Treads Leg Aluminum Leg Utility Small Storage Unit Device Improved Terrain Scanner Storage Small Storage Unit Weapon Assault Rifle Energy Gun Particle Gun Ballistic Gun Assault Rifle Launcher Grenade Launcher Build | -11 -10 -10 -10 -9 -8 ------- Run | Scr Mat Min Exi Min Mat Slots Evolved 4 | . . . . . 4 Power . | . . . . . . Propulsion 1 | . . . . . 1 Utility 3 | . . . . . 3 Weapon . | . . . . . . Parts Attached 18 | 7 2 . . 1 8 Power 2 | 1 1 . . . . Engine 2 | 1 1 . . . . Core . | . . . . . . Reactor . | . . . . . . Propulsion 4 | 2 . . . . 2 Treads 2 | . . . . . 2 Leg 2 | 2 . . . . . Wheel . | . . . . . . Hover . | . . . . . . Flight . | . . . . . . Utility 2 | 2 . . . . . Device 1 | 1 . . . . . Storage 1 | 1 . . . . . Processor . | . . . . . . Hackware . | . . . . . . Protection . | . . . . . . Artifact . | . . . . . . Weapon 10 | 2 1 . . 1 6 Energy Gun 4 | . . . . . 4 Energy Cannon . | . . . . . . Ballistic Gun 5 | 2 . . . 1 2 Ballistic Cannon . | . . . . . . Launcher 1 | . 1 . . . . Special Weapon . | . . . . . . Impact Weapon . | . . . . . . Slashing Weapon . | . . . . . . Piercing Weapon . | . . . . . . Special Melee Weapon . | . . . . . . Unidentified Prototypes . | . . . . . . Parts Lost 13 | . . . . . 13 Power 1 | . . . . . 1 Propulsion 4 | . . . . . 4 Utility 1 | . . . . . 1 Weapon 7 | . . . . . 7 Highest Loss Streak 10 | . . . . . 10 To Critical Strikes . | . . . . . . Average Slot Usage (%) 96 | . 100 100 100 100 46 Engine 13 | . 14 14 14 14 6 Leg 26 | . 28 28 28 28 8 Device 13 | . 14 14 14 14 6 Storage 13 | . 14 14 14 14 9 Ballistic Gun 14 | . 24 14 14 14 6 Launcher 11 | . 3 14 14 14 6 Naked Turns . | . . . . . . Heaviest Build 17 | 13 16 16 16 17 17 Greatest Support 40 | 20 20 20 20 20 40 Greatest Overweight (x) 5 | 3 . . . . 5 Average Overweight (x) . | . . . . . . Largest Inventory Capacity 8 | 8 8 8 8 8 8 Average Capacity 7 | 7 8 8 8 8 8 Most Carried 8 | 3 6 6 7 8 8 Average Carried 6 | 1 3 6 6 7 6 Final Capacity 8 | 8 8 8 8 8 8 Final Carried 8 | 3 6 6 7 8 4 Class Distribution -------------------- 79% | Mutant 20% | Skirmisher Dominant Class ---------------- Mutant | -10/Materials Mutant | -10/Mines Mutant | -10/Exiles Skirmisher | -9/Mines Mutant | -8/Materials Resources | -11 -10 -10 -10 -9 -8 ----------- Run | Scr Mat Min Exi Min Mat Matter Collected 604 | 138 273 . . 18 175 Remotely . | . . . . . . Salvage Created 553 | 27 176 . . . 350 Parts 23 | 2 3 . . . 18 Haulers Intercepted . | . . . . . . Recyclers Shooed 1 | . . . . . 1 Parts Field Recycled . | . . . . . . Retrieved Matter . | . . . . . . Parts Self-Destructed . | . . . . . . Prevented . | . . . . . . Kills | -11 -10 -10 -10 -9 -8 ------- Run | Scr Mat Min Exi Min Mat Combat Hostiles Destroyed 12 | . 3 . . . 9 Guns 6 | . 2 . . . 4 AOE 6 | . 1 . . . 5 Classes Destroyed 6 | 1 4 . . . 1 Worker 1 | . 1 . . . . Tunneler 1 | 1 . . . . . Recycler 1 | . 1 . . . . Watcher 1 | . 1 . . . . Grunt 9 | . 3 . . . 6 Sentry 3 | . . . . . 3 Best Kill Streak 5 | 1 3 . . . 5 Combat Bots Only 5 | . 2 . . . 5 Max Kills in Single Turn 3 | 1 3 . . . 2 Gunslinging . | . . . . . . Exploded 2 | . 1 . . . 2 Melee . | . . . . . . Uniques/NPCs Destroyed . | . . . . . . Combat | -11 -10 -10 -10 -9 -8 -------- Run | Scr Mat Min Exi Min Mat Damage Taken 1871 | . 206 . . . 1665 Core 598 | . 41 . . . 557 Absorbed by Shields . | . . . . . . Core Remaining (%) 91 | 100 . . . 83 . Volleys Fired 51 | 1 20 . . . 30 Largest 2 | 2 2 . . . 2 Hottest 134 | 40 50 . . . 134 Shots Fired 79 | 2 40 . . . 37 Gun 64 | 2 35 . . . 27 Cannon . | . . . . . . Launcher 15 | . 5 . . . 10 Special . | . . . . . . Kinetic 47 | 2 35 . . . 10 Thermal 17 | . . . . . 17 Explosive 15 | . 5 . . . 10 Electromagnetic . | . . . . . . Robot Hit Streak 11 | 2 11 . . . 7 Robot Miss Streak 4 | . 4 . . . 2 Penetration Max . | . . . . . . Secondary Targets . | . . . . . . Shots Hit Robots 51 | 2 23 . . . 26 Core Hits 32 | 1 9 1 . . 21 Critical Kills 1 | . . . . . 1 Critical Parts Destroyed . | . . . . . . Critical Strikes 1 | . . . . . 1 Destroy 1 | . . . . . 1 Melee Attacks . | . . . . . . Impact . | . . . . . . Slashing . | . . . . . . Piercing . | . . . . . . Sneak Attacks . | . . . . . . Combat Hostiles . | . . . . . . Follow-up Attacks . | . . . . . . Damage Inflicted 1602 | 26 584 2 . . 990 Guns 566 | 26 231 . . . 309 Cannons . | . . . . . . Explosions 1030 | . 353 . . . 677 Melee . | . . . . . . Ramming 6 | . . 2 . . 4 Kinetic 326 | 26 231 . . . 69 Thermal 448 | . 208 . . . 240 Explosive 822 | . 145 . . . 677 Electromagnetic . | . . . . . . Impact . | . . . . . . Slashing . | . . . . . . Piercing . | . . . . . . Highest Corruption . | . . . . . . Average Corruption . | . . . . . . Corruption Purged . | . . . . . . Corruption Blocked . | . . . . . . Overload Shots . | . . . . . . Overflow Damage 50 | . 28 . . . 22 Projectiles . | . . . . . . Explosions 50 | . 28 . . . 22 Melee . | . . . . . . Knockbacks . | . . . . . . Impact . | . . . . . . Kinetic . | . . . . . . Secondary . | . . . . . . Self-Inflicted Damage 56 | . . . . . 56 Shots 2 | . . . . . 2 Rammed 1 | . . . . . 1 Targets Rammed 2 | . . 1 . . 1 Kicked 1 | . . 1 . . . Crushed . | . . . . . . Highest Temperature 171 | . 2 . . . 171 Average Temperature 60 | . 2 . . . 65 Received Heat Transfer 852 | . 114 . . . 738 Siege Activations . | . . . . . . Robots Corrupted . | . . . . . . Combat Hostiles . | . . . . . . Parts Fried . | . . . . . . Impact Corruptions . | . . . . . . Robots Melted . | . . . . . . Combat Hostiles . | . . . . . . Parts Melted 1 | . . . . . 1 Heat Transferred 705 | . 150 . . . 555 Parts Sabotaged . | . . . . . . Parts Stolen . | . . . . . . Parts Stripped . | . . . . . . Power Chain Reactions . | . . . . . . Missiles Intercepted . | . . . . . . Alert | -11 -10 -10 -10 -9 -8 ------- Run | Scr Mat Min Exi Min Mat Peak Influence 226 | 5 226 29 . . 198 Initial 29 | . 3 29 . . . Average 35 | 1 61 29 . . 108 Maximum Alert Level 1 | . 1 . . . . Low Security (%) 98 | 100 93 100 . 100 100 Level 1 1 | . 6 . . . . Level 2 . | . . . . . . Level 3 . | . . . . . . Level 4 . | . . . . . . Level 5 . | . . . . . . High Security . | . . . . . . Max Security . | . . . . . . Squads Dispatched 3 | . 1 . . . 2 Investigation . | . . . . . . Extermination . | . . . . . . Reinforcement 3 | . 1 . . . 2 Assault . | . . . . . . Garrison . | . . . . . . Intercept . | . . . . . . Searches Triggered . | . . . . . . Construction Impeded . | . . . . . . Haulers Reinforced . | . . . . . . Active Scanning Responses . | . . . . . . Cargo Convoy Interrupts . | . . . . . . Stealth | -11 -10 -10 -10 -9 -8 --------- Run | Scr Mat Min Exi Min Mat Distress Signals 4 | . . . . . 4 Communications Jammed . | . . . . . . Distress Signals . | . . . . . . Times Spotted 22 | . 5 . . . 17 Peak Tracking Total 9 | . 2 . . . 9 Tactical Retreats 1 | . . . . . 1 Traps | -11 -10 -10 -10 -9 -8 ------- Run | Scr Mat Min Exi Min Mat Traps Triggered . | . . . . . . Indirectly . | . . . . . . Trap Hack Attempts . | . . . . . . Triggered . | . . . . . . Disarmed . | . . . . . . Reprogrammed . | . . . . . . Reused . | . . . . . . Traps Extracted . | . . . . . . Installed . | . . . . . . Triggered . | . . . . . . Machines | -11 -10 -10 -10 -9 -8 ---------- Run | Scr Mat Min Exi Min Mat Machines Disabled 4 | . 4 . . . . Max in Single Turn 4 | . 4 . . . . Machines Sabotaged . | . . . . . . Garrisons Compromised . | . . . . . . Overloaded Fab Kills . | . . . . . . Hacking | -11 -10 -10 -10 -9 -8 --------- Run | Scr Mat Min Exi Min Mat Machines Accessed 6 | . 3 . 2 . 1 Terminals 4 | . 3 . . . 1 Fabricators . | . . . . . . Repair Stations . | . . . . . . Recycling Units . | . . . . . . Scanalyzers . | . . . . . . Garrison Access . | . . . . . . Total Hacks 18 | . 6 . 10 . 2 Successful 12 | . 2 . 10 . . Failed 6 | . 4 . . . 2 Catastrophic 2 | . 1 . . . 1 Database Lockouts . | . . . . . . Manual 9 | . 6 . 1 . 2 Terminals 8 | . 6 . . . 2 Fabricators . | . . . . . . Repair Stations . | . . . . . . Recycling Units . | . . . . . . Scanalyzers . | . . . . . . Garrison Access . | . . . . . . Terminal Hacks 12 | . 2 . 10 . . Record 9 | . . . 9 . . Branch Access Points 1 | . 1 . . . . Unreport Threat 1 | . 1 . . . . EX-Prototype ID Bank 1 | . . . 1 . . Fabricator Hacks . | . . . . . . Repair Station Hacks . | . . . . . . Recycling Unit Hacks . | . . . . . . Scanalyzer . | . . . . . . Garrison Access Hacks . | . . . . . . Unauthorized Hacks . | . . . . . . Terminals . | . . . . . . Fabricators . | . . . . . . Repair Stations . | . . . . . . Recycling Units . | . . . . . . Scanalyzers . | . . . . . . Garrison Access . | . . . . . . Data Cores Recovered . | . . . . . . Used . | . . . . . . Hacking Detections 3 | . 2 . . . 1 Full Trace Events 2 | . 2 . . . . Feedback Events . | . . . . . . Feedback Blocked . | . . . . . . Robot Schematics Acquired . | . . . . . . Robots Built . | . . . . . . Authchips . | . . . . . . Time . | . . . . . . Total Robot Build Rating . | . . . . . . Part Schematics Acquired . | . . . . . . Parts Built . | . . . . . . Authchips . | . . . . . . Time . | . . . . . . Total Part Build Rating . | . . . . . . Parts Repaired . | . . . . . . Time . | . . . . . . Parts Recycled . | . . . . . . Recycled Matter . | . . . . . . Retrieved Matter . | . . . . . . Retrieved Components . | . . . . . . Parts Scanalyzed . | . . . . . . Part Schematics Acquired . | . . . . . . Parts Damaged . | . . . . . . Bothacking | -11 -10 -10 -10 -9 -8 ------------ Run | Scr Mat Min Exi Min Mat Used RIF Installer . | . . . . . . Robots Hacked . | . . . . . . Non-combat . | . . . . . . Combat . | . . . . . . Robot Hacks Applied . | . . . . . . Relay Couplers Released . | . . . . . . Fabnet Peak Effective % . | . . . . . . Robots Rewired . | . . . . . . Allies Hacked . | . . . . . . Hacks Repelled . | . . . . . . Allies | -11 -10 -10 -10 -9 -8 -------- Run | Scr Mat Min Exi Min Mat Total Allies 5 | . . 5 . . . Largest Group 5 | . . 5 5 3 3 Highest-Rated Group 80 | . . 80 80 40 40 Highest-Rated Ally 31 | . . 31 31 16 16 Total Orders 1 | . . . . . 1 STAY 1 | . . . . . 1 Ally Attacks 20 | . . . . . 20 Total Damage 213 | . . . . . 213 Kills 2 | . . . . . 2 Allies Corrupted . | . . . . . . Allies Melted . | . . . . . . Intel | -11 -10 -10 -10 -9 -8 ------- Run | Scr Mat Min Exi Min Mat Robot Analysis Total . | . . . . . . Derelict Logs Recovered . | . . . . . . Drone Launches . | . . . . . . Drone Recoveries . | . . . . . . Exploration | -11 -10 -10 -10 -9 -8 ------------- Run | Scr Mat Min Exi Min Mat Turns Passed 2827 | 121 398 145 1452 524 187 Spaces Moved 1134 | 86 271 90 513 108 66 Core 29 | 14 . . . . 15 Treads 5 | . . . . . 5 Legs 1100 | 72 271 90 513 108 46 Wheels . | . . . . . . Hover . | . . . . . . Flight . | . . . . . . Fastest Speed 50 | 50 120 120 120 120 100 Average Speed 121 | 122 120 120 120 120 149 Slowest Speed 300 | 200 120 120 120 120 300 Overloaded Moves . | . . . . . . Propulsion Burnouts . | . . . . . . Robots Hopped . | . . . . . . Cave-ins Triggered . | . . . . . . Exploration Rate (%) 36 | 5 51 26 90 37 9 Regions Visited 5 Branch Regions 3 Pre-discovered Areas . | . . . . . . Known Exits Taken 1 | . 1 . . . . Unknown Exits Taken 4 | 1 . 1 1 1 . Scrap Searched 1 | . . . . 1 . Spaces Dug . | . . . . . . Terrain Destroyed 58 | . 10 . . . 48 Melee . | . . . . . . Projectile . | . . . . . . AOE 58 | . 10 . . . 48 Terrain Rammed . | . . . . . . Walls Destroyed . | . . . . . . Machines Disabled . | . . . . . . Actions | -11 -10 -10 -10 -9 -8 --------- Run | Scr Mat Min Exi Min Mat Total 2493 | 96 303 127 1349 502 116 Wait 1286 | . 9 37 836 393 11 Move 1129 | 85 270 89 512 107 66 Hop . | . . . . . . Pick Up 6 | 3 2 . 1 . . Fast Attach 12 | 7 . . . 1 4 Attach 4 | . . . . . 4 Detach 1 | . . . . 1 . Swap 2 | . 2 . . . . Drop . | . . . . . . Fire 51 | 1 20 . . . 30 Melee . | . . . . . . Ram 1 | . . . . . 1 Kick 1 | . . 1 . . . Crush . | . . . . . . Escape Stasis . | . . . . . . Rewire . | . . . . . . Trap . | . . . . . . Miscellaneous . | . . . . . . Route ------- -11/Scrapyard -10/Materials (discovered 4 exits: [*Mat x2] / *Min x2) -10/Mines -10/Exiles -9/Mines -8/Materials History --------- Turn | Location | Event 18 | -11/Scrapyard | Discovered new exit (range 16) 122 | -11/Scrapyard | Entered Materials 283 | -10/Materials | Identified exit to Mines 299 | -10/Materials | Discovered new exit (range 12) 313 | -10/Materials | Build established: Mutant 365 | -10/Materials | Discovered new exit (range 10) 520 | -10/Materials | Entered Mines 528 | -10/Mines | Assisted by bots powering up and referring to "LRC-V3" 615 | -10/Mines | Discovered new exit (range 13) 625 | -10/Mines | Deemed a non-threat by the Exiles lab entrance 665 | -10/Mines | Entered Exiles 665 | -10/Exiles | Accompanied by 5 allies 695 | -10/Exiles | Led the pair of lost Derelicts to a safe place 695 | -10/Exiles | Met 8R-AWN 712 | -10/Exiles | Met EX-HEX 765 | -10/Exiles | Met EX-BIN 779 | -10/Exiles | Aligned with FarCom system 781 | -10/Exiles | Given EX-Vault access code 809 | -10/Exiles | Opened EX-Vault 818 | -10/Exiles | Found 0b10 Alert Chip 844 | -10/Exiles | Warned to stay clear of 0b10 Research branches 880 | -10/Exiles | Met EX-DEC 934 | -10/Exiles | Visited The Gauntlet 1178 | -10/Exiles | Discovered new exit (range 14) 2117 | -10/Exiles | Left Exiles lab with 0b10 Alert Chip 2117 | -10/Exiles | Entered Mines 2117 | -9/Mines | Accompanied by 3 allies 2227 | -9/Mines | Discovered new exit (range 10) 2425 | -9/Mines | Build established: Skirmisher 2641 | -9/Mines | Entered Materials 2641 | -8/Materials | Accompanied by 3 allies 2641 | -8/Materials | Evolved 4 slots: Propulsion x1, Utility x3 2758 | -8/Materials | Lost 3 parts (2n1w) 2797 | -8/Materials | Core integrity fell below 50% 2818 | -8/Materials | Core integrity fell below 20% 2828 | -8/Materials | Destroyed by G-47 Trooper with Particle Gun Last Messages --------------- 02802_ Particle Gun destroyed. 02802_ Acquired 47 matter. 02804_ Acquired Beam Rifle. 02805_ Slug penetrates Wall. 02812_ Beam Rifle destroyed. 02814_ Slammed into Y-45 Defender. 02814_ G-47 Trooper suffers critical hit (Burn). 02814_ G-47 Trooper destroyed. 02815_ Acquired 23 matter. 02817_ Acquired Particle Gun. 02817_ Slug penetrates Wall. 02818_ K-01 Serf collects debris. 02821_ Acquired Hvy. Laser. 02824_ Slug penetrates Y-45 Defender. 02826_ Imp. Ion Engine melted. 02826_ Y-45 Defender destroyed. 02826_ R-06 Scavenger collects Lgt. Treads. 02827_ Acquired 20 matter. 02827_ Penetrated by Slug. 02827_ Particle Gun destroyed. Map ----- +----------------------------------------------------+ | | | | | ?????????????????????????????????????????????????? | | ?????????????????? ??????????????????????????????? | | ?????????????????????????????????????????????????? | | ????????????????? ???????????????????????????????? | | ??????????#????? ????????????????????????????????? | | ???????????????#????????"?????#??????????????????? | | ?????#??????????????????? ?????? ???????????????? | | ????????????????????##+#####+????????? ??????????? | | ?????????????????#### ????????????????????? | | ???#?????????????# # ###????????#???? ??????? | | ??#????????????#?# #????????##?? ???????? | | ?????????????????# # #?????????### #???????? | | ?????????????????#??# ###??????? # #???????? | | ???????????########## #?????? + #?####??? | | ????######?# # ?????! # ???? | | ????# = [# ########### #?? ?? ??? | | ????# # #??#??????# ####### # ??? | | ????# """ + w #?????#??## ## ??? | | ????# "R # #????#???# ### ## [?? | | ????# """ # ##???????# ?? | | ????# ?# #???#????# T !] ? | | ????######?# #????? ??# = # ! ? | | ???????????# #?? ? ?####h####*r ? | | ?????????? #???? ?# @*%!!%## ######??? | | ?????????### #???? ?# =gg"""## !# ##???????? | | ???????????# #? ?? ?# !*"""## #?#????????? | | ???????????# #? ????# ="""##""" #??#???????? | | ???????????# #? ????# * ##""" # ?????????? | | ????? ?????# #??????#" """##""" #??????????? | | ???????????# #??????#T """## #????? ????? | | ???????????# #??????#" """##""" #??????????? | | ???????????# +??????# = #???? #??????????? | | ???????????# #??????#########???"?? ???????????? | | ?????#?????# #???????????#?????????????????????? | | ???????????? #??????????? ????#??#?????????????? | | ???????????? ?????????????????????????????????? | | ???????????? ?????????????????????????????????? | | ???????????? ??????????????????????????????????? | | ?????????????????????????????????????????????????? | | ?????????????????????????????????????????????????? | | ?????????????????????????????????????????????????? | | ?????????????????????????????????????????????????? | | ?????????????????????????????????????????????????? | | ?????????????????????????????????????????????????? | | ?????????????????????????????????????????????????? | | ?????????????????????????????????????????????????? | | ?????????????????????????????????????????????????? | | ?????????????????????????????????????????????????? | +----------------------------------------------------+ Best States ------------- Heat Dissipation 31 Energy Generation 10 Energy Capacity 250 Matter Stores 300 Matter Capacity 300 Sight Range 16 Terrain Scan Range 16 Terrain Scan Density 10 Evasion (%) 55 Recoil Reduction 2 Item Schematics ----------------- None Robot Schematics ------------------ None Fabricated ------------ Nothing Alien Tech Used ----------------- None Achievements -------------- The More The Merrier Challenges ------------ None Game ------ Seed AlphaTerrabombBlaster Manual? 0 Play Time 00:18:51 Cumulative 27.7 hours Start 2022.09.23 @ 09:44:54 End 2022.09.23 @ 10:01:40 Sessions 1 Manual Loads 0 Difficulty Rogue Special Mode None Game No. 9 Rogue 1 Adventurer 8 Explorer 0 Win Type - Total 1 Types 1/0/0/0/0/0/0/0/0 Lore% 18 Gallery% 19 Achievement% 22 Wizard Run 0 Options --------- ASCII 1 Keyboard 0 Movement Vi Keybinds 0 Fullscreen 1 Font 18/CogWide Map View 76x50 Tactical HUD 1 Map Filters NONE Filters NONE Steam 0 RUN: 6534f8f6-5005-4a87-801d-c57bb76fb508